[Event "3rd FIDE WCCC Rapid G10 2019"]
[Site "Minsk"]
[Date "2019.08.16"]
[Round "3.2"]
[White "Mai, Hieu Linh"]
[Black "Fedorova, Olesya"]
[Result "1-0"]
[ECO "B24"]
[WhiteElo "1344"]
[BlackElo "1578"]
[Annotator "NA"]
[PlyCount "53"]
[EventDate "2019.08.16"]
[EventType "swiss"]
[EventCountry "BLR"]
[SourceTitle "playchess.com"]
[Source "ChessBase"]
[SourceQuality "1"]
[TimeControl "600+5"]

1. e4 {[%emt 0:00:00]} c5 {[%emt 0:00:00]} 2. Nc3 {[%emt 0:00:00]} Nc6 {[%emt 0:00:02]} 3. g3 {[%emt 0:00:01]} g6 {[%emt 0:00:01]} 4. Bg2 {[%emt 0:00:01]} Bg7 {[%emt 0:00:01]} 5. d3 {[%emt 0:00:03]} e6 {[%emt 0:00:01]} 6. Be3 {[%emt 0:00:05]} Nd4 {[%emt 0:00:08]} 7. Qd2 {[%emt 0:00:24]} Ne7 {[%emt 0:00:08]} 8. Nd1 {[%emt 0:00:14]} Qc7 {[%emt 0:00:43]} 9. c3 {[%emt 0:00:22]} Nb5 {[%emt 0:00:32]} 10. d4 {[%emt 0:01:20]} cxd4 {[%emt 0:00:31]} 11. cxd4 O-O {[%emt 0:00:18]} 12. Rc1 {[%emt 0:00:47]} Qd8 {[%emt 0:00:09]} 13. Nf3 {[%emt 0:00:23]} d5 {[%emt 0:00:06]} 14. e5 {[%emt 0:00:08]} b6 {[%emt 0:01:12]} 15. O-O {[%emt 0:01:13]} Ba6 {[%emt 0:00:19]} 16. Re1 {[%emt 0:00:19]} Qd7 {[%emt 0:00:27]} 17. Nc3 {[%emt 0:00:14]} Rac8 {[%emt 0:00:34]} 18. Nxb5 {[%emt 0:00:10]} Bxb5 {[%emt 0:00:12]} 19. Bh6 {[%emt 0:00:14]} Bxh6 {[%emt 0:00:31]} 20. Qxh6 {[%emt 0:00:03]} Nf5 {[%emt 0:00:01]} 21. Qd2 {[%emt 0:01:38]} a5 {[%emt 0:00:58]} 22. g4 {[%emt 0:00:24]} Ne7 {[%emt 0:00:37]} 23. Qh6 {[%emt 0:00:13]} Rxc1 {[%emt 0:00:49]} 24. Rxc1 {[%emt 0:00:05]} f5 {[%emt 0:00:15]} 25. Ng5 {[%emt 0:00:37]} Nc6 {[%emt 0:00:17]} 26. gxf5 {[%emt 0:00:21]} exf5 {[%emt 0:00:46]} 27. Bxd5+ {[%emt 0:00:10]} 1-0

[Event "3rd FIDE WCCC Rapid G10 2019"]
[Site "Minsk"]
[Date "2019.08.16"]
[Round "3.3"]
[White "Nurgaliyeva, Zarina"]
[Black "Zubkovskaya, Ekaterina"]
[Result "1-0"]
[ECO "C49"]
[WhiteElo "1474"]
[BlackElo "1449"]
[Annotator "NA"]
[PlyCount "159"]
[EventDate "2019.08.16"]
[EventType "swiss"]
[EventCountry "BLR"]
[SourceTitle "playchess.com"]
[Source "ChessBase"]
[SourceQuality "1"]
[TimeControl "600+5"]

1. e4 {[%emt 0:00:00]} e5 {[%emt 0:00:00]} 2. Nf3 {[%emt 0:00:00]} Nc6 {[%emt 0:00:00]} 3. Nc3 {[%emt 0:00:00]} Nf6 {[%emt 0:00:01]} 4. Bb5 {[%emt 0:00:01]} Bb4 {[%emt 0:00:11]} 5. O-O {[%emt 0:00:02]} d6 {[%emt 0:00:06]} 6. Nd5 {[%emt 0:00:02]} Bc5 {[%emt 0:00:12]} 7. d4 {[%emt 0:00:07]} exd4 {[%emt 0:00:18]} 8. b4 {[%emt 0:00:46]} Bb6 {[%emt 0:00:09]} 9. Nxb6 {[%emt 0:00:18]} axb6 {[%emt 0:00:32]} 10. Nxd4 {[%emt 0:00:12]} Bd7 {[%emt 0:00:02]} 11. Nf5 {[%emt 0:00:45]} O-O {[%emt 0:01:18]} 12. Bg5 {[%emt 0:00:06]} Bxf5 {[%emt 0:00:42]} 13. Bxc6 {[%emt 0:00:27]} bxc6 {[%emt 0:00:16]} 14. exf5 {[%emt 0:00:02]} Re8 {[%emt 0:00:16]} 15. Qf3 {[%emt 0:00:14]} d5 {[%emt 0:00:13]} 16. a4 {[%emt 0:00:32]} Qd6 {[%emt 0:00:26]} 17. b5 {[%emt 0:00:35]} cxb5 {[%emt 0:01:41]} 18. axb5 {[%emt 0:00:04]} Rxa1 {[%emt 0:00:03]} 19. Rxa1 {[%emt 0:00:04]} Qe5 {[%emt 0:00:03]} 20. Rf1 {[%emt 0:00:17]} Ne4 {[%emt 0:00:56]} 21. Qf4 {[%emt 0:03:42]} Qc3 {[%emt 0:01:06]} 22. Bh4 {[%emt 0:01:18]} Nd2 {[%emt 0:00:46]} 23. Rd1 {[%emt 0:00:25]} Qxc2 {[%emt 0:00:40]} 24. Ra1 {[%emt 0:01:09]} Qc3 {[%emt 0:01:14]} 25. Rd1 {[%emt 0:00:19]} Nb3 {[%emt 0:00:13]} 26. h3 {[%emt 0:00:27]} d4 {[%emt 0:00:06]} 27. f6 {[%emt 0:00:07]} d3 {[%emt 0:00:26]} 28. Qg4 {[%emt 0:00:13]} g6 {[%emt 0:00:15]} 29. Qf4 {[%emt 0:00:02]} Qc5 {[%emt 0:00:06]} 30. Qh6 {[%emt 0:00:02]} Qf8 {[%emt 0:00:01]} 31. Qxf8+ Rxf8 {[%emt 0:00:02]} 32. Rxd3 {[%emt 0:00:03]} Nc5 {[%emt 0:00:01]} 33. Rd1 {[%emt 0:00:09]} Re8 {[%emt 0:00:01]} 34. Bg3 {[%emt 0:00:01]} Ne6 {[%emt 0:00:03]} 35. Rd7 {[%emt 0:00:02]} Kf8 {[%emt 0:00:02]} 36. Bxc7 {[%emt 0:00:01]} Nxc7 {[%emt 0:00:02]} 37. Rxc7 {[%emt 0:00:01]} Rb8 {[%emt 0:00:03]} 38. g4 {[%emt 0:00:02]} h6 {[%emt 0:00:02]} 39. h4 {[%emt 0:00:01]} g5 {[%emt 0:00:02]} 40. hxg5 {[%emt 0:00:02]} hxg5 {[%emt 0:00:02]} 41. f4 {[%emt 0:00:03]} gxf4 {[%emt 0:00:03]} 42. Kf2 {[%emt 0:00:00]} Kg8 {[%emt 0:00:03]} 43. Kf3 {[%emt 0:00:01]} Kh7 {[%emt 0:00:03]} 44. Rxf7+ {[%emt 0:00:02]} Kg6 {[%emt 0:00:02]} 45. Rc7 {[%emt 0:00:02]} Kxf6 {[%emt 0:00:02]} 46. Kxf4 {[%emt 0:00:01]} Kg6 {[%emt 0:00:10]} 47. Rc6+ Kf7 {[%emt 0:00:03]} 48. Kf5 {[%emt 0:00:03]} Rb7 {[%emt 0:00:07]} 49. g5 {[%emt 0:00:03]} Kg7 {[%emt 0:00:01]} 50. g6 {[%emt 0:00:03]} Rb8 {[%emt 0:00:24]} 51. Rc7+ {[%emt 0:00:01]} Kg8 {[%emt 0:00:02]} 52. g7 {[%emt 0:00:07]} Kh7 {[%emt 0:00:07]} 53. Kf6 {[%emt 0:00:01]} Rg8 {[%emt 0:00:03]} 54. Rf7 {[%emt 0:00:09]} Kh6 {[%emt 0:00:08]} 55. Rf8 {[%emt 0:00:06]} Rxg7 {[%emt 0:00:05]} 56. Rh8+ {[%emt 0:00:02]} Rh7 {[%emt 0:00:02]} 57. Rxh7+ {[%emt 0:00:01]} Kxh7 {[%emt 0:00:01]} 58. Ke6 {[%emt 0:00:01]} Kg7 {[%emt 0:00:01]} 59. Kd6 {[%emt 0:00:01]} Kf7 {[%emt 0:00:02]} 60. Kc6 {[%emt 0:00:01]} Ke7 {[%emt 0:00:01]} 61. Kxb6 {[%emt 0:00:01]} Kd8 {[%emt 0:00:01]} 62. Ka7 {[%emt 0:00:02]} Kc7 {[%emt 0:00:03]} 63. b6+ {[%emt 0:00:01]} Kc6 {[%emt 0:00:01]} 64. b7 {[%emt 0:00:01]} Kc5 {[%emt 0:00:03]} 65. b8=Q {[%emt 0:00:03]} Kd5 {[%emt 0:00:01]} 66. Qc7 {[%emt 0:00:01]} Ke6 {[%emt 0:00:02]} 67. Qd8 {[%emt 0:00:02]} Ke5 {[%emt 0:00:01]} 68. Qd7 {[%emt 0:00:01]} Kf6 {[%emt 0:00:02]} 69. Qe8 {[%emt 0:00:01]} Kf5 {[%emt 0:00:01]} 70. Qe7 {[%emt 0:00:01]} Kf4 {[%emt 0:00:02]} 71. Qe6 {[%emt 0:00:02]} Kf3 {[%emt 0:00:01]} 72. Qe5 {[%emt 0:00:01]} Kf2 {[%emt 0:00:01]} 73. Qe4 {[%emt 0:00:00]} Kf1 {[%emt 0:00:02]} 74. Qc2 {[%emt 0:00:04]} Ke1 {[%emt 0:00:02]} 75. Kb6 {[%emt 0:00:01]} Kf1 {[%emt 0:00:02]} 76. Kc5 {[%emt 0:00:01]} Ke1 {[%emt 0:00:01]} 77. Kd4 {[%emt 0:00:01]} Kf1 {[%emt 0:00:02]} 78. Ke3 {[%emt 0:00:02]} Kg1 {[%emt 0:00:02]} 79. Kf3 {[%emt 0:00:01]} Kh1 {[%emt 0:00:01]} 80. Qg2# {[%emt 0:00:01]} 1-0

[Event "3rd FIDE WCCC Rapid G10 2019"]
[Site "Minsk"]
[Date "2019.08.16"]
[Round "3.4"]
[White "Khamdamova, Afruza"]
[Black "Liashkevich, Lizaveta"]
[Result "0-1"]
[ECO "B90"]
[WhiteElo "1607"]
[BlackElo "1370"]
[Annotator "NA"]
[PlyCount "126"]
[EventDate "2019.08.16"]
[EventType "swiss"]
[EventCountry "BLR"]
[SourceTitle "playchess.com"]
[Source "ChessBase"]
[SourceQuality "1"]
[TimeControl "600+5"]

1. e4 {[%emt 0:00:00]} c5 {[%emt 0:00:00]} 2. Nf3 {[%emt 0:00:00]} d6 {[%emt 0:00:00]} 3. d4 {[%emt 0:00:00]} cxd4 {[%emt 0:00:00]} 4. Nxd4 {[%emt 0:00:00]} Nf6 {[%emt 0:00:01]} 5. Nc3 {[%emt 0:00:01]} a6 {[%emt 0:00:01]} 6. Bc4 {[%emt 0:00:18]} e6 {[%emt 0:00:02]} 7. O-O {[%emt 0:00:23]} b5 {[%emt 0:00:04]} 8. Bd3 {[%emt 0:00:28]} Bb7 {[%emt 0:00:05]} 9. a3 {[%emt 0:00:49]} Be7 {[%emt 0:00:08]} 10. Be3 {[%emt 0:00:06]} Nbd7 {[%emt 0:00:06]} 11. f4 {[%emt 0:00:08]} O-O {[%emt 0:00:14]} 12. Qe2 {[%emt 0:00:51]} Qc7 {[%emt 0:00:49]} 13. Rad1 {[%emt 0:01:10]} Nc5 {[%emt 0:00:29]} 14. Bf2 {[%emt 0:00:07]} Rac8 {[%emt 0:00:58]} 15. e5 {[%emt 0:01:26]} dxe5 {[%emt 0:00:02]} 16. fxe5 {[%emt 0:00:01]} Nd5 {[%emt 0:00:21]} 17. Nxd5 {[%emt 0:00:39]} Bxd5 {[%emt 0:00:04]} 18. Qh5 {[%emt 0:01:10]} Nxd3 {[%emt 0:00:38]} 19. Rxd3 {[%emt 0:00:12]} f6 {[%emt 0:01:11]} 20. Rh3 {[%emt 0:00:37]} Qxe5 {[%emt 0:00:56]} 21. Qxh7+ {[%emt 0:00:04]} Kf7 {[%emt 0:00:03]} 22. Rg3 {[%emt 0:00:05]} Rg8 {[%emt 0:00:10]} 23. Qg6+ {[%emt 0:00:09]} Kf8 {[%emt 0:00:04]} 24. Re1 {[%emt 0:00:15]} Qd6 {[%emt 0:00:13]} 25. Be3 {[%emt 0:00:37]} Bd8 {[%emt 0:02:28]} 26. Rf1 {[%emt 0:01:33]} Qe7 {[%emt 0:00:39]} 27. h4 {[%emt 0:00:15]} Qf7 {[%emt 0:00:10]} 28. Qh7 {[%emt 0:00:07]} Ke7 {[%emt 0:00:35]} 29. h5 {[%emt 0:00:11]} Bc7 {[%emt 0:00:15]} 30. Rg4 {[%emt 0:00:06]} f5 {[%emt 0:00:33]} 31. Rg6 {[%emt 0:00:05]} Be5 {[%emt 0:00:23]} 32. Bg5+ {[%emt 0:00:07]} Kd7 {[%emt 0:00:08]} 33. Nf3 {[%emt 0:00:13]} Bxb2 {[%emt 0:00:07]} 34. Bc1 {[%emt 0:00:08]} Bf6 {[%emt 0:00:02]} 35. Rg3 {[%emt 0:00:07]} Rh8 {[%emt 0:00:06]} 36. Qg6 {[%emt 0:00:05]} Qxg6 {[%emt 0:00:03]} 37. hxg6 {[%emt 0:00:01]} Ke7 {[%emt 0:00:13]} 38. Bg5 {[%emt 0:00:07]} Bxg5 {[%emt 0:00:03]} 39. Nxg5 {[%emt 0:00:01]} Rxc2 {[%emt 0:00:09]} 40. Re1 {[%emt 0:00:09]} Kd7 {[%emt 0:00:09]} 41. Nf7 {[%emt 0:00:04]} Rhc8 {[%emt 0:00:08]} 42. Ne5+ {[%emt 0:00:05]} Ke7 {[%emt 0:00:04]} 43. Nf3 {[%emt 0:00:12]} Rb2 {[%emt 0:00:05]} 44. Nd4 {[%emt 0:00:07]} Kd7 {[%emt 0:00:04]} 45. Rd1 {[%emt 0:00:13]} Ke7 {[%emt 0:00:08]} 46. Re1 {[%emt 0:00:02]} Kd6 {[%emt 0:00:02]} 47. Rd1 {[%emt 0:00:02]} Ke7 {[%emt 0:00:04]} 48. Re1 {[%emt 0:00:04]} Kd6 {[%emt 0:00:01]} 49. Rd1 {[%emt 0:00:07]} Ra2 {[%emt 0:00:02]} 50. Nf3 {[%emt 0:00:12]} Ke7 {[%emt 0:00:02]} 51. Rh3 {[%emt 0:00:01]} Bxf3 {[%emt 0:00:07]} 52. Rxf3 {[%emt 0:00:02]} Rcc2 {[%emt 0:00:03]} 53. Rg3 {[%emt 0:00:02]} Rab2 {[%emt 0:00:05]} 54. Ra1 {[%emt 0:00:02]} Rd2 {[%emt 0:00:01]} 55. Kh2 {[%emt 0:00:03]} Kf6 {[%emt 0:00:02]} 56. Kh3 {[%emt 0:00:03]} Rd8 {[%emt 0:00:02]} 57. Kh2 {[%emt 0:00:04]} Rdd2 {[%emt 0:00:04]} 58. Kh3 {[%emt 0:00:02]} Rd8 {[%emt 0:00:04]} 59. Kh2 {[%emt 0:00:01]} Rh8+ {[%emt 0:00:04]} 60. Kg1 {[%emt 0:00:01]} Rh6 {[%emt 0:00:03]} 61. Re1 {[%emt 0:00:02]} Rc2 {[%emt 0:00:07]} 62. Rge3 {[%emt 0:00:13]} Rc6 {[%emt 0:00:01]} 63. Ra1 {[%emt 0:00:15]} Rxg6 {[%emt 0:00:02]} 0-1

[Event "3rd FIDE WCCC Rapid G10 2019"]
[Site "Minsk"]
[Date "2019.08.16"]
[Round "3.5"]
[White "Prochaieva, Alina"]
[Black "Sidorenja, Milena"]
[Result "0-1"]
[ECO "A00"]
[WhiteElo "1249"]
[BlackElo "1573"]
[Annotator "NA"]
[PlyCount "80"]
[EventDate "2019.08.16"]
[EventType "swiss"]
[EventCountry "BLR"]
[SourceTitle "playchess.com"]
[Source "ChessBase"]
[SourceQuality "1"]
[TimeControl "600+5"]

1. g3 {[%emt 0:00:00]} d5 {[%emt 0:00:00]} 2. Bg2 {[%emt 0:00:00]} c6 {[%emt 0:00:00]} 3. d3 {[%emt 0:00:00]} Nf6 {[%emt 0:00:06]} 4. a3 {[%emt 0:00:08]} Bf5 {[%emt 0:00:06]} 5. e3 {[%emt 0:00:02]} e6 {[%emt 0:00:03]} 6. h3 {[%emt 0:00:02]} Bd6 {[%emt 0:00:12]} 7. b4 {[%emt 0:00:04]} Be5 {[%emt 0:00:10]} 8. Ra2 {[%emt 0:00:13]} O-O {[%emt 0:00:56]} 9. Ne2 {[%emt 0:00:12]} Qc7 {[%emt 0:00:20]} 10. f4 {[%emt 0:00:12]} Bd6 {[%emt 0:00:09]} 11. O-O {[%emt 0:00:12]} Nbd7 {[%emt 0:00:18]} 12. g4 {[%emt 0:00:28]} Bg6 {[%emt 0:00:03]} 13. Nd2 {[%emt 0:00:05]} h6 {[%emt 0:00:05]} 14. Bb2 {[%emt 0:00:06]} e5 {[%emt 0:00:11]} 15. f5 {[%emt 0:00:21]} Bh7 {[%emt 0:00:02]} 16. c4 {[%emt 0:00:45]} e4 {[%emt 0:00:32]} 17. dxe4 {[%emt 0:00:31]} dxe4 {[%emt 0:01:35]} 18. Nxe4 {[%emt 0:00:14]} Nxe4 {[%emt 0:00:25]} 19. Bxe4 {[%emt 0:00:04]} Rae8 {[%emt 0:00:02]} 20. Qc2 {[%emt 0:01:14]} Be5 {[%emt 0:00:32]} 21. Nd4 {[%emt 0:00:59]} c5 {[%emt 0:01:26]} 22. Nb5 {[%emt 0:00:55]} Qb8 {[%emt 0:00:08]} 23. Nc3 {[%emt 0:00:31]} Bxc3 {[%emt 0:00:32]} 24. Bxc3 {[%emt 0:00:41]} Qg3+ {[%emt 0:00:06]} 25. Bg2 {[%emt 0:00:03]} Rxe3 {[%emt 0:00:08]} 26. Be1 {[%emt 0:00:37]} Rxe1 {[%emt 0:00:14]} 27. Rxe1 {[%emt 0:00:32]} Qxe1+ {[%emt 0:00:02]} 28. Kh2 {[%emt 0:00:02]} cxb4 {[%emt 0:00:27]} 29. axb4 {[%emt 0:00:25]} Qxb4 {[%emt 0:00:13]} 30. Rxa7 {[%emt 0:00:13]} Nc5 {[%emt 0:00:38]} 31. Ra1 {[%emt 0:00:21]} Qb6 {[%emt 0:00:09]} 32. Rb1 {[%emt 0:00:07]} Qd6+ {[%emt 0:00:04]} 33. Kh1 {[%emt 0:00:08]} Re8 {[%emt 0:00:25]} 34. Bd5 {[%emt 0:00:40]} Qg3 {[%emt 0:00:24]} 35. Bg2 {[%emt 0:00:26]} g6 {[%emt 0:00:43]} 36. Rf1 {[%emt 0:00:34]} Nd3 {[%emt 0:00:31]} 37. Rf3 {[%emt 0:00:42]} Re1+ {[%emt 0:00:31]} 38. Bf1 {[%emt 0:00:15]} Qxf3+ {[%emt 0:00:07]} 39. Kg1 {[%emt 0:00:05]} Qxf1+ {[%emt 0:00:07]} 40. Kh2 {[%emt 0:00:03]} Qg1# {[%emt 0:00:02]} 0-1

[Event "3rd FIDE WCCC Rapid G10 2019"]
[Site "Minsk"]
[Date "2019.08.16"]
[Round "3.6"]
[White "Shenker, Angelina"]
[Black "Mutina, Sofia"]
[Result "1/2-1/2"]
[ECO "A46"]
[WhiteElo "1403"]
[BlackElo "1421"]
[Annotator "NA"]
[PlyCount "71"]
[EventDate "2019.08.16"]
[EventType "swiss"]
[EventCountry "BLR"]
[SourceTitle "playchess.com"]
[Source "ChessBase"]
[SourceQuality "1"]
[TimeControl "600+5"]

1. d4 {[%emt 0:00:00]} Nf6 {[%emt 0:00:00]} 2. Nf3 {[%emt 0:00:00]} d5 {[%emt 0:00:00]} 3. c4 {[%emt 0:00:00]} e6 {[%emt 0:00:00]} 4. g3 {[%emt 0:00:00]} c6 {[%emt 0:00:01]} 5. Bg2 {[%emt 0:00:02]} Bd6 {[%emt 0:00:01]} 6. O-O {[%emt 0:00:02]} O-O {[%emt 0:00:01]} 7. Qc2 {[%emt 0:00:01]} Nbd7 {[%emt 0:00:06]} 8. Nbd2 {[%emt 0:00:03]} b6 {[%emt 0:00:04]} 9. e4 {[%emt 0:00:19]} dxe4 {[%emt 0:00:24]} 10. Nxe4 {[%emt 0:00:01]} Nxe4 {[%emt 0:00:04]} 11. Qxe4 {[%emt 0:00:02]} Bb7 {[%emt 0:00:02]} 12. Rd1 {[%emt 0:00:27]} Nf6 {[%emt 0:00:13]} 13. Qc2 {[%emt 0:00:02]} Qc7 {[%emt 0:00:13]} 14. c5 {[%emt 0:00:28]} Be7 {[%emt 0:00:01]} 15. Bf4 {[%emt 0:00:12]} Qd8 {[%emt 0:00:04]} 16. Ne5 {[%emt 0:00:13]} bxc5 {[%emt 0:00:22]} 17. dxc5 {[%emt 0:00:05]} Nd5 {[%emt 0:00:01]} 18. Bd2 {[%emt 0:01:21]} Bf6 {[%emt 0:00:25]} 19. Ng4 {[%emt 0:00:26]} Be7 {[%emt 0:00:15]} 20. Ne3 {[%emt 0:00:11]} Qc7 {[%emt 0:00:10]} 21. Rac1 {[%emt 0:01:18]} Rac8 {[%emt 0:00:15]} 22. b4 {[%emt 0:00:20]} Ba6 {[%emt 0:00:51]} 23. Nc4 {[%emt 0:00:22]} Bxc4 {[%emt 0:01:06]} 24. Qxc4 {[%emt 0:00:02]} Rfd8 {[%emt 0:00:41]} 25. a3 {[%emt 0:00:07]} Bf6 {[%emt 0:00:26]} 26. Qb3 {[%emt 0:00:35]} Qb7 {[%emt 0:00:37]} 27. Be1 {[%emt 0:00:33]} Rb8 {[%emt 0:00:33]} 28. Rb1 {[%emt 0:00:15]} a6 {[%emt 0:01:00]} 29. Qc4 {[%emt 0:00:23]} Qb5 {[%emt 0:00:27]} 30. Bf1 {[%emt 0:00:31]} g6 {[%emt 0:01:13]} 31. Qb3 {[%emt 0:01:35]} Qb7 {[%emt 0:00:02]} 32. Qa4 {[%emt 0:00:26]} Ra8 {[%emt 0:00:15]} 33. Qb3 {[%emt 0:00:01]} Rab8 {[%emt 0:00:02]} 34. Qa4 {[%emt 0:00:02]} Ra8 {[%emt 0:00:03]} 35. Qb3 {[%emt 0:00:02]} Rab8 {[%emt 0:00:01]} 36. Qa4 {[%emt 0:00:04]} 1/2-1/2

[Event "3rd FIDE WCCC Rapid G10 2019"]
[Site "Minsk"]
[Date "2019.08.16"]
[Round "4.1"]
[White "Liashkevich, Lizaveta"]
[Black "Shukhman, Anna"]
[Result "0-1"]
[ECO "A85"]
[WhiteElo "1370"]
[BlackElo "1806"]
[Annotator "NA"]
[PlyCount "134"]
[EventDate "2019.08.16"]
[EventType "swiss"]
[EventCountry "BLR"]
[SourceTitle "playchess.com"]
[Source "ChessBase"]
[SourceQuality "1"]
[TimeControl "600+5"]

1. d4 {[%emt 0:00:00]} f5 {[%emt 0:00:01]} 2. c4 {[%emt 0:00:02]} Nf6 {[%emt 0:00:02]} 3. Nc3 {[%emt 0:00:02]} e6 {[%emt 0:00:03]} 4. Nf3 {[%emt 0:00:06]} Be7 {[%emt 0:00:01]} 5. Qc2 {[%emt 0:00:36]} O-O {[%emt 0:00:10]} 6. Bg5 {[%emt 0:00:27]} d6 {[%emt 0:00:06]} 7. e3 {[%emt 0:00:19]} Nbd7 {[%emt 0:00:12]} 8. Bd3 {[%emt 0:00:35]} h6 {[%emt 0:00:07]} 9. Bh4 {[%emt 0:00:11]} Qe8 {[%emt 0:00:45]} 10. O-O-O {[%emt 0:01:11]} c5 {[%emt 0:00:52]} 11. Bg3 {[%emt 0:01:08]} Nh5 {[%emt 0:01:08]} 12. Nb5 {[%emt 0:00:52]} Nxg3 {[%emt 0:00:28]} 13. hxg3 {[%emt 0:00:19]} Qd8 {[%emt 0:00:05]} 14. Nh4 {[%emt 0:00:19]} a6 {[%emt 0:00:06]} 15. Nc3 {[%emt 0:00:02]} cxd4 {[%emt 0:00:29]} 16. exd4 {[%emt 0:00:06]} Bxh4 {[%emt 0:00:28]} 17. gxh4 {[%emt 0:00:26]} b5 {[%emt 0:00:54]} 18. cxb5 {[%emt 0:00:13]} axb5 {[%emt 0:00:03]} 19. Bxb5 {[%emt 0:00:12]} Bb7 {[%emt 0:00:18]} 20. f3 {[%emt 0:00:09]} Nf6 {[%emt 0:00:06]} 21. Bc4 {[%emt 0:00:05]} d5 {[%emt 0:00:08]} 22. Bd3 {[%emt 0:00:12]} Qb6 {[%emt 0:00:05]} 23. Be2 {[%emt 0:00:36]} Rfc8 {[%emt 0:00:19]} 24. Kb1 {[%emt 0:00:05]} Bc6 {[%emt 0:00:12]} 25. Qd2 {[%emt 0:00:18]} Be8 {[%emt 0:00:57]} 26. g4 {[%emt 0:00:12]} fxg4 {[%emt 0:00:04]} 27. fxg4 {[%emt 0:00:02]} Bg6+ {[%emt 0:00:25]} 28. Bd3 {[%emt 0:00:09]} Bxd3+ {[%emt 0:01:00]} 29. Qxd3 {[%emt 0:00:02]} Rab8 {[%emt 0:00:04]} 30. Qd2 {[%emt 0:00:17]} Qb4 {[%emt 0:00:34]} 31. Rc1 {[%emt 0:00:13]} Nxg4 {[%emt 0:00:14]} 32. Rc2 {[%emt 0:00:28]} Rc4 {[%emt 0:00:20]} 33. Ne2 {[%emt 0:00:41]} Qxd2 {[%emt 0:00:11]} 34. Rxd2 {[%emt 0:00:03]} Nf2 {[%emt 0:00:17]} 35. Rf1 {[%emt 0:00:10]} Ne4 {[%emt 0:00:09]} 36. Rc2 {[%emt 0:00:04]} Rbc8 {[%emt 0:00:24]} 37. Rxc4 {[%emt 0:00:04]} Rxc4 {[%emt 0:00:02]} 38. b3 {[%emt 0:00:18]} Nd2+ {[%emt 0:00:12]} 39. Kb2 {[%emt 0:00:03]} Nxf1 {[%emt 0:00:05]} 40. bxc4 {[%emt 0:00:03]} dxc4 {[%emt 0:00:02]} 41. Kc3 {[%emt 0:00:05]} Ne3 {[%emt 0:00:02]} 42. a4 {[%emt 0:00:07]} Kf7 {[%emt 0:00:15]} 43. a5 {[%emt 0:00:01]} Ke7 {[%emt 0:00:05]} 44. a6 {[%emt 0:00:03]} Kd7 {[%emt 0:00:07]} 45. a7 {[%emt 0:00:04]} Nd5+ {[%emt 0:00:02]} 46. Kxc4 {[%emt 0:00:02]} Nb6+ {[%emt 0:00:01]} 47. Kb5 {[%emt 0:00:03]} Kc7 {[%emt 0:00:02]} 48. Ka6 {[%emt 0:00:05]} g5 {[%emt 0:00:06]} 49. hxg5 {[%emt 0:00:02]} hxg5 {[%emt 0:00:01]} 50. Ng3 {[%emt 0:00:05]} g4 {[%emt 0:00:08]} 51. Ne4 {[%emt 0:00:04]} Kc6 {[%emt 0:00:03]} 52. Ng3 {[%emt 0:00:05]} Na8 {[%emt 0:00:02]} 53. Nh5 {[%emt 0:00:06]} Nc7+ {[%emt 0:00:03]} 54. Ka5 {[%emt 0:00:04]} Kb7 {[%emt 0:00:03]} 55. Kb4 {[%emt 0:00:03]} Kxa7 {[%emt 0:00:03]} 56. Kc4 {[%emt 0:00:02]} Kb6 {[%emt 0:00:01]} 57. Kd3 {[%emt 0:00:02]} Kc6 {[%emt 0:00:02]} 58. Ke4 {[%emt 0:00:03]} Nd5 {[%emt 0:00:07]} 59. Nf4 {[%emt 0:00:38]} Nxf4 {[%emt 0:00:07]} 60. Kxf4 {[%emt 0:00:02]} Kd5 {[%emt 0:00:00]} 61. Kxg4 {[%emt 0:00:03]} Kxd4 {[%emt 0:00:01]} 62. Kf3 {[%emt 0:00:01]} e5 {[%emt 0:00:02]} 63. Kf2 {[%emt 0:00:05]} Kd3 {[%emt 0:00:02]} 64. Ke1 {[%emt 0:00:01]} e4 {[%emt 0:00:07]} 65. Kd1 {[%emt 0:00:03]} e3 {[%emt 0:00:02]} 66. Ke1 {[%emt 0:00:01]} e2 {[%emt 0:00:01]} 67. Kf2 {[%emt 0:00:02]} Kd2 {[%emt 0:00:01]} 0-1